fUSD/lending_fUSD_20250607
["ID","MTS","AMOUNT","RATE_DAILY","PERIOD"]
[364875513,1749283885197,-1753.76,0.00028219,5]
[364875514,1749283885206,-480.0,0.00028219,5]
[364875515,1749283885216,-967.54,0.00028219,5]
[364875516,1749283885225,-480.0,0.00028219,5]
[364875517,1749283885235,-480.0,0.00028219,5]
[364875518,1749283885244,-480.0,0.00028219,5]
[364875519,1749283885254,-480.0,0.00028219,5]
[364875520,1749283885263,-11876.34,0.00028219,5]
[364875521,1749283885272,-1453.1,0.00028219,5]
[364875522,1749283885282,-480.0,0.00028219,5]
[364875523,1749283885291,-480.0,0.00028219,5]
[364875524,1749283885301,-683.94,0.00028219,5]
[364875525,1749283885311,-480.0,0.00028219,5]
[364875526,1749283885324,-165.91465972,0.00028219,5]
[364875527,1749283885334,-1122.69,0.00028219,5]
[364875528,1749283885343,-10865.99,0.00028219,5]
[364875529,1749283885353,-480.0,0.00028219,5]
[364875530,1749283885363,-480.0,0.00028219,5]
[364875531,1749283885374,-871.56,0.00028219,5]
[364875532,1749283885383,-1581.96,0.00028219,5]
[364875533,1749283885393,-480.0,0.00028219,5]
[364875534,1749283885403,-480.0,0.00028219,5]
[364875535,1749283885414,-480.0,0.00028219,5]
[364875536,1749283885423,-813.01,0.00028219,5]
[364875537,1749283885433,-480.0,0.00028219,5]
[364875538,1749283885443,-480.0,0.00028219,5]
[364875539,1749283885452,-2227.22,0.00028219,5]
[364875540,1749283885462,-2000.65,0.00028219,5]
[364875541,1749283885471,-1731.59,0.00028219,5]
[364875542,1749283885480,-480.0,0.00028219,5]
[364875543,1749283885490,-2403.78,0.00028219,5]
[364875544,1749283885500,-480.0,0.00028219,5]
[364875545,1749283885510,-151.0,0.00028219,7]
[364875546,1749283885520,-1327.04,0.00028219,5]
[364875547,1749283885530,-747.9,0.00028219,5]
[364875548,1749283885540,-480.0,0.00028219,5]
[364875549,1749283885550,-575.71,0.00028219,5]
[364875550,1749283885560,-480.0,0.00028219,5]
[364875551,1749283885570,-492.12,0.00028219,5]
[364875552,1749283885580,-480.0,0.00028219,5]
[364875553,1749283885589,-480.0,0.00028219,5]
[364875554,1749283885600,-4322.98,0.00028219,5]
[364875555,1749283885611,-494.08,0.00028219,5]
[364875556,1749283885624,-480.0,0.00028219,5]
[364875557,1749283885635,-518.65,0.00028219,5]
[364875558,1749283885644,-1066.78,0.00028219,5]
[364875559,1749283885654,-480.0,0.00028219,5]
[364875560,1749283885664,-1078.23,0.00028219,5]
[364875561,1749283885674,-499.42,0.00028219,5]
[364875562,1749283885683,-697.95,0.00028219,5]
[364875563,1749283885693,-957.28,0.00028219,5]
[364875564,1749283885703,-871.81,0.00028219,5]
[364875565,1749283885712,-1569.25,0.00028219,5]
[364875566,1749283885722,-480.0,0.00028219,5]
[364875567,1749283885733,-480.0,0.00028219,5]
[364875568,1749283885743,-757.09,0.00028219,5]
[364875569,1749283885753,-3593.96,0.00028219,5]
[364875570,1749283885762,-869.93,0.00028219,5]
[364875571,1749283885772,-607.22,0.00028219,5]
[364875572,1749283885782,-1281.37,0.00028219,5]
[364875573,1749283885792,-1143.16,0.00028219,5]
[364875574,1749283885802,-480.0,0.00028219,5]
[364875575,1749283885812,-630.74,0.00028219,5]
[364875576,1749283885823,-689.06,0.00028219,5]
[364875577,1749283885833,-1387.38,0.00028219,5]
[364875578,1749283885844,-562.19152586,0.00028219,5]
[364875579,1749283885855,-480.0,0.00028219,5]
[364875580,1749283885866,-2996.31,0.00028219,5]
[364875581,1749283885876,-480.0,0.00028219,5]
[364875582,1749283885886,-151.0,0.00028219,7]
[364875583,1749283885896,-151.0,0.00028219,7]
[364875584,1749283885906,-151.0,0.00028219,7]
[364875585,1749283885915,-165.36091429,0.00028219,30]
[364875586,1749283885926,-165.36091429,0.00028219,30]
[364875587,1749283885935,-512.391467,0.00028219,30]
[364875588,1749283885946,-200.0,0.00028237,2]
[364875589,1749283885955,-300.0,0.00028256,2]
[364875590,1749283885965,-197.65281716,0.00028264,2]
[364875591,1749283885974,-1000.0,0.00028285,2]
[364875592,1749283885984,-2000.0,0.00028299,2]
[364875593,1749283885993,-6449.08,0.000283,2]
[364875594,1749283886002,-151.0,0.00028345,7]
[364875595,1749283886012,-1000.0,0.00028356,2]
[364875596,1749283886022,-2212.47,0.00028382,5]
[364875597,1749283886032,-794.82,0.00028382,2]
[364875598,1749283886044,-3176.64,0.00028382,5]
[364875599,1749283886054,-3176.64,0.00028382,5]
[364875600,1749283886064,-3176.64,0.00028382,5]
[364875601,1749283886074,-3176.64,0.00028382,5]
[364875602,1749283886083,-3176.80068646,0.00028382,5]
[364875603,1749283886092,-480.0,0.00028383,5]
[364875604,1749283886102,-631.92,0.00028383,5]
[364875605,1749283886111,-480.0,0.00028383,5]
[364875606,1749283886121,-480.0,0.00028383,5]
[364875607,1749283886130,-480.0,0.00028383,5]
[364875608,1749283886140,-480.0,0.00028383,5]
[364875609,1749283886149,-642.32,0.00028383,5]
[364875610,1749283886159,-1416.8,0.00028383,5]
[364875611,1749283886170,-480.0,0.00028383,5]
[364875612,1749283886180,-480.0,0.00028383,5]
[364875613,1749283886190,-480.0,0.00028383,5]
[364875614,1749283886200,-480.0,0.00028383,5]
[364875615,1749283886210,-722.44,0.00028383,5]
[364875616,1749283886221,-658.72,0.00028383,5]
[364875617,1749283886231,-309.80047158,0.00028383,5]
[364875618,1749283886241,-480.0,0.00028383,5]
[364875619,1749283886252,-480.0,0.00028383,5]
[364875620,1749283886262,-480.0,0.00028383,5]
[364875621,1749283886271,-514.07,0.00028383,5]
[364875622,1749283886281,-480.0,0.00028383,5]
[364875623,1749283886290,-480.0,0.00028383,5]
[364875624,1749283886299,-480.0,0.00028383,5]
[364875625,1749283886308,-1423.16,0.00028383,5]
[364875626,1749283886319,-480.0,0.00028383,5]
[364875627,1749283886331,-416.04029825,0.00028383,5]
[364875628,1749283886341,-1954.69,0.00028383,5]
[364875629,1749283886350,-480.0,0.00028383,5]
[364875630,1749283886360,-624.11,0.00028383,5]
[364875631,1749283886370,-222.15729077,0.00028383,5]
[364875632,1749283886380,-480.0,0.00028383,5]
[364875633,1749283886390,-480.0,0.00028383,5]
[364875634,1749283886400,-480.0,0.00028383,5]
[364875635,1749283886410,-480.0,0.00028383,5]
[364875636,1749283886613,-480.0,0.00028383,5]
[364875637,1749283886624,-618.47,0.00028383,5]
[364875638,1749283886635,-1137.84,0.00028383,5]
[364875639,1749283886644,-1163.74,0.00028383,5]
[364875640,1749283886654,-480.0,0.00028383,5]
[364875641,1749283886664,-480.0,0.00028383,5]
[364875642,1749283886674,-480.0,0.00028383,5]
[364875643,1749283886684,-480.0,0.00028383,5]
[364875644,1749283886693,-807.84,0.00028383,5]
[364875645,1749283886703,-1323.94,0.00028383,5]
[364875646,1749283886713,-480.0,0.00028383,5]
[364875647,1749283886722,-480.0,0.00028383,5]
[364875648,1749283886732,-517.82010398,0.00028383,5]
[364875649,1749283886742,-722.49,0.00028383,5]
[364875650,1749283886751,-480.0,0.00028383,5]
[364875651,1749283886761,-480.0,0.00028383,5]
[364875652,1749283886771,-480.0,0.00028383,5]
[364875653,1749283886781,-1046.98,0.00028383,5]
[364875654,1749283886791,-480.0,0.00028383,5]
[364875655,1749283886801,-713.0,0.00028383,5]
[364875656,1749283886811,-480.0,0.00028383,5]
[364875657,1749283886821,-548.11,0.00028383,5]
[364875658,1749283886831,-882.53,0.00028383,5]
[364875659,1749283886841,-480.0,0.00028383,5]
[364875660,1749283886850,-480.0,0.00028383,5]
[364875661,1749283886860,-480.0,0.00028383,5]
[364875662,1749283886870,-736.64,0.00028383,5]
[364875663,1749283886881,-185.85302686,0.00028383,5]
[364875664,1749283886892,-513.29225079,0.00028383,5]
[364875665,1749283886902,-505.5181524,0.00028383,5]
[364875666,1749283886911,-658.07,0.00028383,5]
[364875667,1749283886921,-208.07743202,0.00028383,5]
[364875668,1749283886930,-676.89,0.00028383,5]
[364875669,1749283886939,-480.0,0.00028383,5]
[364875670,1749283886949,-611.81,0.00028383,5]
[364875671,1749283886958,-903.48,0.00028383,5]
[364875672,1749283886967,-545.14,0.00028383,5]
[364875673,1749283886977,-1030.91,0.00028383,5]
[364875674,1749283886986,-480.0,0.00028383,5]
[364875675,1749283886995,-480.0,0.00028383,5]
[364875676,1749283887004,-480.0,0.00028383,5]
[364875677,1749283887014,-1787.253615,0.00028383,5]
[364875678,1749283887024,-652.14,0.00028383,5]
[364875679,1749283887033,-480.0,0.00028383,5]
[364875680,1749283887046,-480.0,0.00028383,5]
[364875681,1749283887055,-1026.76,0.00028383,5]
[364875682,1749283887066,-573.4,0.00028383,5]
[364875683,1749283887075,-873.46,0.00028383,5]
[364875684,1749283887085,-480.0,0.00028383,5]
[364875685,1749283887094,-533.04364812,0.00028383,5]
[364875686,1749283887103,-787.2,0.00028383,5]
[364875687,1749283887112,-1212.38,0.00028383,5]
[364875688,1749283887122,-2102.121321,0.00028383,5]
[364875689,1749283887131,-480.0,0.00028383,5]
[364875690,1749283887141,-480.0,0.00028383,5]
[364875691,1749283887150,-480.0,0.00028383,5]
[364875692,1749283887160,-480.0,0.00028383,5]
[364875693,1749283887170,-480.0,0.00028383,5]
[364875694,1749283887179,-480.0,0.00028383,5]
[364875695,1749283887190,-1174.57,0.00028383,5]
[364875696,1749283887199,-480.0,0.00028383,5]
[364875697,1749283887208,-850.33,0.00028383,5]
[364875698,1749283887218,-554.27,0.00028383,5]
[364875699,1749283887227,-480.0,0.00028383,5]
[364875700,1749283887237,-480.0,0.00028383,5]
[364875701,1749283887246,-737.61,0.00028383,5]
[364875702,1749283887255,-494.24,0.00028383,5]
[364875703,1749283887265,-634.26,0.00028383,5]
[364875704,1749283887277,-835.68,0.00028383,5]
[364875705,1749283887286,-768.49,0.00028383,5]
[364875706,1749283887296,-480.0,0.00028383,5]
[364875707,1749283887307,-480.0,0.00028383,5]
[364875708,1749283887317,-528.15,0.00028383,5]
[364875709,1749283887331,-480.0,0.00028383,5]
[364875710,1749283887341,-480.0,0.00028383,5]
[364875711,1749283887351,-1115.25,0.00028383,5]
[364875712,1749283887361,-480.0,0.00028383,5]
[364875713,1749283887371,-504.56308384,0.00028383,5]
[364875714,1749283887381,-2016.63,0.00028383,5]
[364875715,1749283887391,-485.39,0.00028383,5]
[364875716,1749283887401,-480.0,0.00028383,5]
[364875717,1749283887411,-480.0,0.00028383,5]
[364875718,1749283887421,-480.0,0.00028383,5]
[364875719,1749283887431,-480.0,0.00028383,5]
[364875720,1749283887440,-984.78,0.00028383,5]
[364875721,1749283887451,-480.0,0.00028383,5]
[364875722,1749283887460,-480.0,0.00028383,5]
[364875723,1749283887470,-220.56707478,0.00028383,5]
[364875724,1749283887480,-509.19815683,0.00028383,5]
[364875725,1749283887489,-480.0,0.00028383,5]
[364875726,1749283887499,-956.19,0.00028383,5]
[364875727,1749283887510,-601.8,0.00028383,5]
[364875728,1749283887519,-798.33,0.00028383,5]
[364875729,1749283887529,-658.43,0.00028383,5]
[364875730,1749283887539,-984.27,0.00028383,5]
[364875731,1749283887548,-853.62,0.00028383,5]
[364875732,1749283887558,-480.0,0.00028383,5]
[364875733,1749283887568,-480.0,0.00028383,5]
[364875734,1749283887577,-1719.89,0.00028383,5]
[364875735,1749283887587,-879.54,0.00028383,5]
[364875736,1749283887596,-990.87,0.00028383,5]
[364875737,1749283887606,-769.25,0.00028383,5]
[364875738,1749283887616,-1000.0,0.00028383,5]
[364875739,1749283887626,-169.15025998,0.00028383,5]
[364875740,1749283887635,-619.63,0.00028383,5]
[364875741,1749283887645,-964.13,0.00028383,5]
[364875742,1749283887655,-480.0,0.00028383,5]
[364875743,1749283887664,-480.0,0.00028383,5]
[364875744,1749283887674,-614.65,0.00028383,5]
[364875745,1749283887684,-511.75752596,0.00028383,5]
[364875746,1749283887693,-480.0,0.00028383,5]
[364875747,1749283887703,-620.08,0.00028383,5]
[364875748,1749283887713,-959.52,0.00028383,5]
[364875749,1749283887723,-481.61,0.00028383,5]
[364875750,1749283887733,-607.29,0.00028383,5]
[364875751,1749283887743,-1150.03,0.00028383,5]
[364875752,1749283887752,-647.25,0.00028383,5]
[364875753,1749283887762,-1086.55,0.00028383,5]
[364875754,1749283887771,-480.0,0.00028383,5]
[364875755,1749283887781,-1473.87,0.00028383,5]
[364875756,1749283887790,-480.0,0.00028383,5]
[364875757,1749283887799,-480.0,0.00028383,5]
[364875758,1749283887808,-7690.81,0.00028383,5]
[364875759,1749283887818,-480.0,0.00028383,5]
[364875760,1749283887828,-480.0,0.00028383,5]
[364875761,1749283887838,-481.08017082,0.00028383,5]
[364875762,1749283887847,-480.0,0.00028383,5]
[364875763,1749283887857,-1206.45,0.00028383,5]
[364875764,1749283887866,-480.0,0.00028383,5]
[364875765,1749283887876,-301.66693988,0.00028383,5]
[364875766,1749283887886,-480.0,0.00028383,5]
[364875767,1749283887896,-594.14,0.00028383,5]
[364875768,1749283887906,-480.0,0.00028383,5]
[364875769,1749283887916,-656.54,0.00028383,5]
[364875770,1749283887926,-665.13,0.00028383,5]
[364875771,1749283887935,-509.24,0.00028383,5]
[364875772,1749283887945,-480.0,0.00028383,5]
[364875773,1749283887957,-867.98,0.00028383,5]
[364875774,1749283887966,-835.03,0.00028383,5]
[364875775,1749283887976,-1091.22,0.00028383,5]
[364875776,1749283887988,-788.44,0.00028383,5]
[364875777,1749283887997,-480.0,0.00028383,5]
[364875778,1749283888009,-480.0,0.00028383,5]
[364875779,1749283888020,-2181.17,0.00028383,5]
[364875780,1749283888032,-675.89,0.00028383,5]
[364875781,1749283888043,-1257.45,0.00028383,5]
[364875782,1749283888053,-1342.98,0.00028383,5]
[364875783,1749283888064,-5948.08,0.00028383,5]
[364875784,1749283888074,-748.21,0.00028383,5]
[364875785,1749283888083,-480.0,0.00028383,5]
[364875786,1749283888094,-1325.93,0.00028383,5]
[364875787,1749283888105,-6018.65,0.00028383,5]
[364875788,1749283888115,-480.0,0.00028383,5]
[364875789,1749283888126,-480.0,0.00028383,5]
[364875790,1749283888136,-480.0,0.00028383,5]
[364875791,1749283888145,-622.41,0.00028383,5]
[364875792,1749283888155,-1072.0,0.00028383,5]
[364875793,1749283888165,-1345.91,0.00028383,5]
[364875794,1749283888176,-480.0,0.00028383,5]
[364875795,1749283888186,-480.0,0.00028383,5]
[364875796,1749283888196,-965.47,0.00028383,5]
[364875797,1749283888206,-2147.53,0.00028383,2]
[364875798,1749283888217,-480.0,0.00028383,5]
[364875799,1749283888227,-1671.91,0.00028383,5]
[364875800,1749283888236,-539.6324748,0.00028383,5]
[364875801,1749283888246,-500.65112787,0.00028383,5]
[364875802,1749283888257,-2644.51,0.00028383,5]
[364875803,1749283888267,-2010.42,0.00028383,5]
[364875804,1749283888276,-3264.83,0.00028383,5]
[364875805,1749283888287,-1546.17,0.00028383,5]
[364875806,1749283888297,-480.0,0.00028383,5]
[364875807,1749283888307,-2124.13,0.00028383,5]
[364875808,1749283888317,-480.0,0.00028383,5]
[364875809,1749283888330,-312.92015723,0.00028383,5]
[364875810,1749283888340,-3035.15,0.00028383,5]
[364875811,1749283888350,-6110.32,0.00028383,5]
[364875812,1749283888360,-3803.92,0.00028383,5]
[364875813,1749283888372,-1458.57,0.00028383,5]
[364875814,1749283888382,-882.95,0.00028383,5]
[364875815,1749283888392,-1003.3,0.00028383,5]
[364875816,1749283888403,-480.0,0.00028383,5]
[364875817,1749283888412,-1170.49,0.00028383,5]
[364875818,1749283888422,-3633.12,0.00028383,5]
[364875819,1749283888433,-1000.0,0.00028383,5]
[364875820,1749283888443,-1513.66,0.00028383,5]
[364875821,1749283888453,-596.66,0.00028383,5]
[364875822,1749283888463,-1093.12,0.00028383,5]
[364875823,1749283888473,-814.18,0.00028383,5]
[364875824,1749283888484,-2008.91,0.00028383,5]
[364875825,1749283888495,-495.78,0.00028383,5]
[364875826,1749283888506,-480.0,0.00028383,5]
[364875827,1749283888516,-480.0,0.00028383,5]
[364875828,1749283888527,-802.83,0.00028383,5]
[364875829,1749283888537,-2029.78,0.00028383,5]
[364875830,1749283888547,-2623.17,0.00028383,5]
[364875831,1749283888556,-5571.7,0.00028383,5]
[364875832,1749283888567,-480.0,0.00028383,5]
[364875833,1749283888577,-480.0,0.00028383,5]
[364875834,1749283888587,-749.45,0.00028383,5]
[364875835,1749283888597,-2770.74,0.00028383,5]
[364875836,1749283888608,-855.47,0.00028383,5]
[364875837,1749283888619,-1941.16,0.00028383,5]
[364875838,1749283888630,-1529.93,0.00028383,5]
[364875839,1749283888641,-734.71,0.00028383,5]
[364875840,1749283888652,-4023.49,0.00028383,5]
[364875841,1749283888663,-480.0,0.00028383,5]
[364875842,1749283888674,-491.0673233,0.00028383,5]
[364875843,1749283888684,-1675.33,0.00028383,5]
[364875844,1749283888694,-525.98,0.00028383,5]
[364875845,1749283888704,-1753.76,0.00028383,5]
[364875846,1749283888715,-511.16572398,0.00028383,5]
[364875847,1749283888725,-967.54,0.00028383,5]
[364875848,1749283888735,-480.0,0.00028383,5]
[364875849,1749283888745,-480.0,0.00028383,5]
[364875850,1749283888756,-480.0,0.00028383,5]
[364875851,1749283888766,-323.06782786,0.00028383,5]
[364875852,1749283888776,-11876.34,0.00028383,5]
[364875853,1749283888786,-1453.1,0.00028383,5]
[364875854,1749283888797,-1221.810892,0.00028383,7]
[364875855,1749283888806,-480.0,0.00028383,5]
[364875856,1749283888817,-480.0,0.00028383,5]
[364875857,1749283888826,-683.94,0.00028383,5]
[364875858,1749283888836,-480.0,0.00028383,5]
[364875859,1749283888846,-1122.69,0.00028383,5]
[364875860,1749283888857,-10865.99,0.00028383,5]
[364875861,1749283888867,-494.17376144,0.00028383,5]
[364875862,1749283888878,-480.0,0.00028383,5]
[364875863,1749283888887,-1221.810892,0.00028383,7]
[364875864,1749283888897,-871.56,0.00028383,5]
[364875865,1749283888908,-1581.96,0.00028383,5]
[364875866,1749283888919,-480.0,0.00028383,5]
[364875867,1749283888930,-480.0,0.00028383,5]
[364875868,1749283888940,-480.0,0.00028383,5]
[364875869,1749283888951,-813.01,0.00028383,5]
[364875870,1749283888961,-480.0,0.00028383,5]
[364875871,1749283888971,-480.0,0.00028383,5]
[364875872,1749283888982,-2227.22,0.00028383,5]
[364875873,1749283888993,-2000.65,0.00028383,5]
[364875874,1749283889002,-1731.59,0.00028383,5]
[364875875,1749283889013,-480.0,0.00028383,5]
[364875876,1749283889022,-2403.78,0.00028383,5]
[364875877,1749283889032,-506.48906902,0.00028383,5]
[364875878,1749283889044,-1327.04,0.00028383,5]
[364875879,1749283889054,-747.9,0.00028383,5]
[364875880,1749283889063,-151.0,0.00028383,7]
[364875881,1749283889074,-480.0,0.00028383,5]
[364875882,1749283889084,-575.71,0.00028383,5]
[364875883,1749283889094,-480.0,0.00028383,5]
[364875884,1749283889104,-492.12,0.00028383,5]
[364875885,1749283889115,-151.0,0.00028383,7]
[364875886,1749283889125,-480.0,0.00028383,5]
[364875887,1749283889137,-480.0,0.00028383,5]
[364875888,1749283889147,-10000.0,0.00028383,7]
[364875889,1749283889158,-4322.98,0.00028383,5]
[364875890,1749283889376,-494.08,0.00028383,5]
[364875891,1749283889387,-480.0,0.00028383,5]
[364875892,1749283889397,-518.65,0.00028383,5]
[364875893,1749283889408,-1066.78,0.00028383,5]
[364875894,1749283889418,-10000.0,0.00028383,7]
[364875895,1749283889428,-480.0,0.00028383,5]
[364875896,1749283889438,-1078.23,0.00028383,5]
[364875897,1749283889448,-499.42,0.00028383,5]
[364875898,1749283889459,-697.95,0.00028383,5]
[364875899,1749283889469,-10000.0,0.00028383,7]
[364875900,1749283889479,-957.28,0.00028383,5]
[364875901,1749283889489,-871.81,0.00028383,5]
[364875902,1749283889499,-1569.25,0.00028383,5]
[364875903,1749283889509,-480.0,0.00028383,5]
[364875904,1749283889519,-480.0,0.00028383,5]
[364875905,1749283889529,-757.09,0.00028383,5]
[364875906,1749283889539,-3593.96,0.00028383,5]
[364875907,1749283889550,-869.93,0.00028383,5]
[364875908,1749283889560,-607.22,0.00028383,5]
[364875909,1749283889570,-1281.37,0.00028383,5]
[364875910,1749283889580,-1143.16,0.00028383,5]
[364875911,1749283889592,-480.0,0.00028383,5]
[364875912,1749283889602,-630.74,0.00028383,5]
[364875913,1749283889612,-689.06,0.00028383,5]
[364875914,1749283889622,-1387.38,0.00028383,5]
[364875915,1749283889632,-480.0,0.00028383,5]
[364875916,1749283889642,-2996.31,0.00028383,5]
[364875917,1749283889652,-480.0,0.00028383,5]
[364875918,1749283889663,-579.382257,0.00028383,7]
[364875919,1749283889673,-579.382257,0.00028383,7]
[364875920,1749283889682,-1000.0,0.00028386,2]
[364875921,1749283889692,-301.39,0.00028397,2]
[364875922,1749283889701,-202.3884,0.00028397,7]
[364875923,1749283889710,-202.3884,0.00028397,7]
[364875924,1749283889719,-151.0,0.00028397,7]
[364875925,1749283889729,-151.0,0.00028397,7]
[364875926,1749283889738,-151.0,0.00028397,7]
[364875927,1749283889748,-151.0,0.00028397,7]
[364875928,1749283889758,-958.247097,0.00028397,7]
[364875929,1749283889768,-958.247097,0.00028397,7]
[364875930,1749283889778,-151.0,0.00028397,7]
[364875931,1749283889788,-150.0,0.00028403,2]
[364875932,1749283889798,-296.10723875,0.00028417,19]
[364875933,1749283889808,-1000.0,0.00028428,2]
[364875934,1749283889819,-1701.27827813,0.00028447,2]
[364875935,1749283889830,-817.50445255,0.00028458,2]
[364875936,1749283889840,-433.71002826,0.00028468,2]
[364875937,1749283889850,-556.88832092,0.00028468,5]
[364875938,1749283889860,-150.0,0.00028497,2]
[364875939,1749283889871,-6449.08,0.000285,2]
[364875940,1749283889881,-150.0,0.00028513,2]
[364875941,1749283889891,-150.0,0.00028513,2]
[364875942,1749283889901,-151.0,0.00028513,24]
[364875943,1749283889910,-244.3276046,0.00028519,2]
[364875944,1749283889919,-2212.47,0.00028546,5]
[364875945,1749283889929,-794.82,0.00028546,2]
[364875946,1749283889938,-30667.66897403,0.00028547,7]
[364875947,1749283889947,-1954841.64619516,0.00028547,7]
[364875948,1749283890553,-941.85830663,0.00028547,7]
[364875949,1749283890574,-2076.70402768,0.00028547,7]
[364875950,1749283890596,-360.78,0.00028547,7]
[364875951,1749283890689,480.0,0.00035616,120]
[364875952,1749283890808,1590.8,0.00035616,120]
[364875953,1749283890903,194.72246859,0.00035616,120]
[364875954,1749283891019,1590.8,0.00035616,120]
[364875955,1749283891119,480.0,0.00035616,120]
[364875956,1749283891243,1590.8,0.00035616,120]
[364875957,1749283891486,1590.8,0.00035616,120]
[364875958,1749283891574,1590.8,0.00035616,120]
[364875959,1749283891669,160.0,0.00035616,120]
[364875960,1749283891737,1590.8,0.00035616,120]
[364875961,1749283891798,483.54103888,0.00035616,120]
[364875962,1749283891972,1590.8,0.00035616,120]
[364875963,1749283892005,-412.35782268,0.000269,2]
[364875964,1749283892015,-883.0,0.00026974,2]
[364875965,1749283892025,-549524.95560445,0.00028547,7]
[364875966,1749283892035,-480.0,0.00028547,5]
[364875967,1749283892045,-631.92,0.00028547,5]
[364875968,1749283892055,-480.0,0.00028547,5]
[364875969,1749283892064,-480.0,0.00028547,5]
[364875970,1749283892074,-480.0,0.00028547,5]
[364875971,1749283892083,-480.0,0.00028547,5]
[364875972,1749283892093,-642.32,0.00028547,5]
[364875973,1749283892102,-1416.8,0.00028547,5]
[364875974,1749283892112,-480.0,0.00028547,5]
[364875975,1749283892121,-480.0,0.00028547,5]
[364875976,1749283892130,-480.0,0.00028547,5]
[364875977,1749283892140,-151.0,0.00028547,7]
[364875978,1749283892149,-480.0,0.00028547,5]
[364875979,1749283892159,-151.0,0.00028547,7]
[364875980,1749283892168,-151.0,0.00028547,7]
[364875981,1749283892177,-151.0,0.00028547,7]
[364875982,1749283892187,-151.0,0.00028547,7]
[364875983,1749283892196,-722.44,0.00028547,5]
[364875984,1749283892205,-658.72,0.00028547,5]
[364875985,1749283892214,-151.0,0.00028547,7]
[364875986,1749283892866,-355.30553004,0.00028547,5]
[364875987,1749283892887,-480.0,0.00028547,5]
[364875988,1749283892906,-480.0,0.00028547,5]
[364875989,1749283892919,-514.07,0.00028547,5]
[364875990,1749283892929,-480.0,0.00028547,5]
[364875991,1749283892939,-480.0,0.00028547,5]
[364875992,1749283892949,-480.0,0.00028547,5]
[364875993,1749283892958,-1423.16,0.00028547,5]
[364875994,1749283892967,-485.62251727,0.00028547,5]
[364875995,1749283892977,-1954.69,0.00028547,5]
[364875996,1749283892986,-667.336566,0.00028547,7]
[364875997,1749283892996,-667.336566,0.00028547,7]
[364875998,1749283893006,-480.0,0.00028547,5]
[364875999,1749283893015,-624.11,0.00028547,5]
[364876000,1749283893025,-480.0,0.00028547,5]
[364876001,1749283893036,-480.0,0.00028547,5]
[364876002,1749283893045,-480.0,0.00028547,5]
[364876003,1749283893055,-480.0,0.00028547,5]
[364876004,1749283893065,-508.78716392,0.00028547,5]
[364876005,1749283893075,-618.47,0.00028547,5]
[364876006,1749283893085,-1137.84,0.00028547,5]
[364876007,1749283893094,-151.0,0.00028547,7]
[364876008,1749283893104,-1163.74,0.00028547,5]
[364876009,1749283893113,-151.0,0.00028547,7]
[364876010,1749283893122,-480.0,0.00028547,5]
[364876011,1749283893132,-251.33606179,0.00028547,5]
[364876012,1749283893142,-480.0,0.00028547,5]